bitfinex/quotes_ETHUSD_20250905
["timestamp","ask_amount","ask_price","bid_price","bid_amount"]
[1757065294346,0.3089,4403.7,4403.6,2.27086928]
[1757065294556,1e-08,4403.8,4403.4,2.27092648]
[1757065294743,0.8059,4403.7,4403.4,2.27092244]
[1757065295054,0.9673,4403.6,4402.3,7.045]
[1757065295259,0.9673,4403.6,4403.1,2.27112389]
[1757065295470,0.9673,4403.6,4402.5,3.0]
[1757065295869,0.9673,4403.6,4402.3,7.045]
[1757065296072,0.9673,4403.6,4402.4,2.27148827]
[1757065296269,1.67300001,4403.8,4403.6,2.27082697]
[1757065296456,1.67300001,4403.8,4402.5,2.27143668]
[1757065296457,3.994,4403.5,4403.4,2.27097243]
[1757065296869,4.3016,4403.5,4403.4,2.27097243]
[1757065297253,1.67300001,4403.8,4403.4,2.27097243]
[1757065297454,3.991,4403.7,4403.0,2.27117874]
[1757065297649,1.67300001,4403.8,4403.5,2.27090722]
[1757065297851,0.3089,4403.6,4403.5,2.27090722]
[1757065298650,0.3089,4403.6,4403.3,2.27100356]
[1757065298651,3.991,4403.7,4403.6,2.27086928]
[1757065298886,4.7969,4403.7,4403.4,2.27097243]
[1757065299077,4.2999,4403.7,4403.4,2.27097243]
[1757065299282,0.4954,4403.6,4403.5,2.27092085]
[1757065299670,0.4954,4403.6,4403.4,2.27096242]
[1757065299882,0.4954,4403.6,4403.3,2.27101047]
[1757065300083,0.4954,4403.5,4403.4,2.27096046]
[1757065300390,0.7915,4403.5,4403.4,2.27096046]
[1757065300566,0.2961,4403.5,4403.4,2.27096046]
[1757065301588,0.7915,4403.5,4403.2,2.27104352]
[1757065301756,0.4954,4403.4,4403.3,2.27102024]
[1757065301959,0.4954,4403.4,4402.1,2.73460924]
[1757065301960,0.9654,4403.4,4402.7,2.2713204]
[1757065302182,0.9654,4403.4,4402.9,2.27119472]
[1757065302370,0.9654,4403.4,4403.0,2.27116699]
[1757065302705,0.2961,4403.1,4402.9,2.27122268]
[1757065302886,3.985,4403.0,4402.8,2.27127096]
[1757065303386,3.985,4403.0,4402.9,2.27123032]
[1757065303586,4.2811,4403.0,4402.9,2.27123032]
[1757065303761,4.2811,4403.0,4402.3,0.4785]
[1757065303961,4.2811,4403.0,4402.3,0.05]
[1757065304187,4.7765,4403.0,4402.5,2.27139779]
[1757065304396,4.2811,4403.0,4402.5,2.27139779]
[1757065304563,0.9654,4402.9,4402.6,2.27137979]
[1757065304761,0.2961,4402.7,4402.5,2.27141997]
[1757065304962,0.2961,4402.7,4402.3,2.32153234]
[1757065305291,0.2961,4402.7,4402.4,2.27148827]
[1757065305683,0.2961,4402.7,4402.6,2.27138509]
[1757065306891,0.2961,4402.7,4402.3,0.05]
[1757065307296,0.9654,4402.6,4402.3,0.05]
[1757065307590,3.976,4402.5,4402.3,0.05]
[1757065307789,0.2961,4402.4,4402.3,0.05]
[1757065307992,1.2615,4402.4,4402.3,0.05]
[1757065309886,3.53298827,4402.4,4402.3,0.05]
[1757065310671,3.53218827,4402.4,4402.3,0.05]
[1757065312095,1.2607,4402.4,4402.3,0.05]
[1757065312304,3.53218827,4402.4,4402.3,0.05]
[1757065313290,10.67218827,4402.4,4402.3,0.05]
[1757065314100,10.67218827,4402.4,4402.3,0.054]
[1757065315574,14.46418827,4402.4,4402.3,0.054]
[1757065316777,14.46418827,4402.4,4402.3,1e-08]
[1757065316977,7.32418827,4402.4,4402.3,1e-08]
[1757065318410,11.21578827,4402.4,4402.3,1e-08]
[1757065319700,11.71118827,4402.4,4402.3,1e-08]
[1757065319900,11.70998827,4402.4,4402.3,1e-08]
[1757065321575,0.4954,4403.7,4402.3,0.75560001]
[1757065321787,0.272,4403.0,4402.7,2.27128866]
[1757065321982,0.272,4402.9,4402.8,0.8915]
[1757065322189,0.272,4402.9,4402.8,3.45538191]
[1757065322782,0.272,4402.9,4402.3,2.27151322]
[1757065323202,1.674,4402.8,4402.3,2.27151322]
[1757065323405,1.674,4402.8,4402.7,0.2926]
[1757065325313,5.665,4402.8,4402.7,3.45543349]
[1757065327908,1e-08,4403.8,4403.7,3.45491772]
[1757065328517,1e-08,4403.8,4403.7,3.02641772]
[1757065328697,1e-08,4403.8,4403.7,3.45491772]
[1757065332399,1e-08,4403.8,4403.7,3.56771772]
[1757065332995,0.00100001,4403.8,4403.7,3.58921772]
[1757065335826,0.00100001,4403.8,4403.7,2.67621772]
[1757065336028,0.00100001,4403.8,4403.7,3.01341772]
[1757065337497,0.00100001,4403.8,4403.7,2.56341772]
[1757065337828,0.00100001,4403.8,4403.7,3.01341772]
[1757065338528,0.00020001,4403.8,4403.7,3.01341772]
[1757065341236,0.1128,4404.2,4403.9,2.27071459]
[1757065341544,0.1128,4404.2,4403.8,2.32055413]
[1757065341948,0.1128,4404.2,4403.9,2.27071269]
[1757065342638,0.1128,4404.2,4404.0,2.27066018]
[1757065342844,0.1128,4404.2,4403.9,2.2707011]
[1757065343965,0.1128,4404.2,4403.8,0.04979999]
[1757065344142,0.1128,4404.7,4404.1,0.2882]
[1757065344444,3.978,4404.6,4404.1,2.55879607]
[1757065344611,3.978,4404.6,4404.2,2.27055881]
[1757065344811,3.978,4404.6,4404.2,0.45]
[1757065345534,3.978,4404.6,4404.2,2.27055113]
[1757065345738,3.978,4404.6,4404.1,2.27059285]
[1757065345939,3.978,4404.6,4404.0,0.1128]
[1757065346309,3.978,4404.6,4404.1,2.27060326]
[1757065346908,3.978,4404.6,4404.0,0.1128]
[1757065346909,0.3162,4404.2,4404.0,0.1128]
[1757065347144,0.3162,4404.2,4403.8,0.16259999]
[1757065347331,0.3162,4404.2,4403.8,2.43336535]
[1757065347515,0.3162,4404.2,4403.8,0.16259999]
[1757065347721,0.3162,4404.2,4403.9,2.27067327]
[1757065347936,0.3162,4404.2,4403.8,2.4333549]
[1757065348311,0.3162,4404.2,4403.9,2.27071187]
[1757065348724,0.3162,4404.2,4403.8,0.16259999]
[1757065349237,0.3162,4404.2,4403.8,2.43332434]
[1757065349405,4.2862,4404.2,4403.9,2.2707136]
[1757065349842,4.2862,4404.2,4404.0,2.27064995]
[1757065350139,4.2862,4404.2,4403.8,0.16259999]
[1757065350140,3.97,4404.2,4403.9,2.27069981]
[1757065350354,0.3162,4404.0,4403.8,0.04979999]
[1757065350523,1.9892,4404.0,4403.8,0.04979999]
[1757065350724,1.673,4404.7,4403.9,0.7382]
[1757065350938,6.24639099,4404.6,4403.9,0.7382]
[1757065351534,2.27044388,4404.5,4403.9,0.7382]
[1757065351733,6.24635657,4404.6,4403.9,0.7382]
[1757065352032,2.27049491,4404.4,4403.9,0.7382]
[1757065352228,0.001,4404.2,4403.8,0.04979999]
[1757065352646,0.001,4404.2,4403.8,0.49979999]
[1757065353977,0.001,4404.2,4404.1,0.2882]
[1757065354726,0.001,4404.2,4404.1,0.7382]
[1757065355429,0.001,4404.2,4404.1,6.58969947]
[1757065355633,0.001,4404.2,4404.1,7.06919947]
[1757065357822,0.001,4404.2,4404.1,11.03519947]
[1757065358419,0.001,4404.2,4404.1,7.06919947]
[1757065358623,0.001,4404.2,4404.1,11.03519947]
[1757065359324,0.025,4405.8,4404.1,8.764588]
[1757065359525,0.025,4405.8,4404.2,5.00672554]
[1757065359752,0.025,4405.8,4405.7,2.26978686]
[1757065360058,0.025,4405.8,4405.7,2.57348686]
[1757065360225,0.025,4405.8,4405.4,2.26994143]
[1757065360430,0.025,4405.8,4405.6,2.26983838]
[1757065361053,0.025,4405.8,4405.7,0.1128]
[1757065361560,0.3181,4405.8,4405.7,0.1128]
[1757065362154,0.025,4405.8,4405.7,2.68628686]
[1757065362356,0.025,4405.8,4405.7,0.4165]
[1757065362731,0.025,4405.8,4405.7,0.1128]
[1757065363253,0.025,4405.8,4405.7,2.38258686]
[1757065363455,0.3181,4405.8,4405.7,0.1128]
[1757065364156,0.025,4405.8,4405.7,3.13648686]
[1757065364356,0.025,4405.8,4405.7,3.76763555]
[1757065364544,0.025,4405.8,4405.7,3.88043555]
[1757065365277,0.025,4405.8,4405.7,6.76763555]
[1757065366226,0.0242,4405.8,4405.7,6.76763555]
[1757065369939,0.0242,4405.8,4405.7,10.27543555]
[1757065371176,0.0252,4405.8,4405.7,10.27543555]
[1757065374156,0.0252,4405.8,4405.7,5.88713555]
[1757065374365,0.0252,4405.8,4405.7,10.27043555]
[1757065375370,0.0252,4405.8,4405.7,2.77223555]
[1757065375584,0.3183,4405.8,4405.7,2.45858686]
[1757065376572,0.7991,4405.8,4405.7,0.1888]
[1757065376775,0.7991,4405.8,4405.7,2.34578686]
[1757065376966,0.3183,4405.8,4405.7,2.34578686]
[1757065377484,1.252,4405.8,4405.7,0.076]
[1757065377891,0.7991,4405.8,4405.7,0.076]
[1757065378071,1.252,4405.8,4405.7,0.076]
[1757065378280,1.3648,4405.8,4405.7,0.076]
[1757065380669,3.63453534,4405.8,4405.7,0.076]
[1757065380870,1.3648,4405.8,4405.7,0.076]
[1757065381069,0.9119,4405.8,4405.7,0.076]
[1757065381390,0.7991,4405.8,4405.7,0.076]
[1757065381766,1.252,4405.8,4405.7,0.076]
[1757065383487,3.52173534,4405.8,4405.7,0.076]
[1757065384267,7.58453534,4405.8,4405.7,0.076]
[1757065385598,4.8599,4405.8,4405.7,0.076]
[1757065385897,7.46973534,4405.8,4405.7,0.076]
[1757065388888,8.15212503,4405.8,4405.7,0.076]
[1757065390115,15.29212503,4405.8,4405.7,0.076]
[1757065391315,18.29212503,4405.8,4405.7,0.076]
[1757065392091,18.28512503,4405.8,4405.7,0.076]
[1757065392485,19.07712503,4405.8,4405.7,0.076]
[1757065394221,19.07632503,4405.8,4405.7,0.076]
[1757065394708,14.68242503,4405.8,4405.7,0.076]
[1757065394923,11.94662503,4405.8,4405.7,0.076]
[1757065396912,11.94862503,4405.8,4405.7,0.076]
[1757065397108,8.00962503,4405.8,4405.7,0.076]
[1757065397487,3.06199296,4405.3,4405.2,0.004]
[1757065397821,8.67199296,4405.3,4405.2,0.004]
[1757065398022,14.21385049,4405.3,4405.2,0.004]
[1757065399193,14.89642338,4405.3,4405.2,0.004]
[1757065399389,10.49222338,4405.3,4405.2,0.004]
[1757065399637,14.42722338,4405.3,4405.2,0.004]
[1757065401935,14.89442338,4405.3,4405.2,0.004]
[1757065402105,14.42722338,4405.3,4405.2,0.004]
[1757065403005,14.42522338,4405.3,4405.2,0.004]
[1757065404124,10.49222338,4405.3,4405.2,0.004]
[1757065404309,14.42122338,4405.3,4405.2,0.004]
[1757065404520,14.42122338,4405.3,4405.2,0.2979]
[1757065404521,3.14757289,4405.3,4405.2,0.2979]
[1757065404724,5.602,4405.3,4405.2,1.2276]
[1757065404911,1.673,4405.3,4405.2,1.2276]
[1757065405091,5.602,4405.3,4405.2,1.2276]
[1757065405291,5.602,4405.3,4405.2,0.741]
[1757065405598,6.0886,4405.3,4405.2,0.741]
[1757065405831,8.35859296,4405.3,4405.2,0.2979]
[1757065406013,8.35859296,4405.3,4405.2,0.004]
[1757065406202,0.4866,4405.3,4405.2,0.2979]
[1757065406405,1.633,4405.3,4405.2,1.2276]
[1757065406610,1.633,4405.3,4405.2,0.741]
[1757065406817,1.633,4405.3,4405.2,1.2276]
[1757065411297,1.673,4405.5,4405.2,1.2276]
[1757065411501,3.942,4405.4,4405.3,0.9297]
[1757065411726,3.942,4405.4,4405.3,1.2236]
[1757065412228,1.673,4405.5,4405.3,1.2236]
[1757065412428,1.673,4405.5,4405.4,0.9297]
[1757065412731,5.617,4405.5,4405.4,1.2236]
[1757065412926,1.673,4405.5,4405.4,1.2236]
[1757065413128,5.617,4405.5,4405.4,1.2236]
[1757065415707,1.673,4405.5,4405.4,1.2236]
[1757065416038,5.611,4405.5,4405.4,1.2236]
[1757065416540,6.0249,4405.5,4405.2,0.004]
[1757065416725,6.70726019,4405.5,4405.2,0.004]
[1757065416925,6.40616019,4405.5,4405.2,0.004]
[1757065417127,6.40616019,4405.5,4405.2,0.4471]
[1757065417527,6.29336019,4405.5,4405.2,0.004]
[1757065417728,0.3011,4405.3,4405.2,0.004]
[1757065417926,4.2381,4405.3,4405.2,0.004]
[1757065418132,6.95989296,4405.3,4405.2,0.004]
[1757065418326,11.28165049,4405.3,4405.2,0.004]
[1757065418542,11.74885049,4405.3,4405.2,0.004]
[1757065419644,18.88885049,4405.3,4405.2,0.004]
[1757065420137,21.88885049,4405.3,4405.2,0.004]
[1757065420340,22.68085049,4405.3,4405.2,0.004]
[1757065421145,18.74385049,4405.3,4405.2,0.004]
[1757065421440,22.67685049,4405.3,4405.2,0.004]
[1757065422111,22.20885049,4405.3,4405.2,0.004]
[1757065422443,18.27585049,4405.3,4405.2,0.004]
[1757065422642,22.20785049,4405.3,4405.2,0.004]
[1757065423114,22.67345049,4405.3,4405.2,0.004]
[1757065423516,18.27585049,4405.3,4405.2,0.004]
[1757065423718,22.20585049,4405.3,4405.2,0.004]
[1757065423936,18.27585049,4405.3,4405.2,0.004]
[1757065424134,22.20485049,4405.3,4405.2,0.004]
[1757065424317,22.67045049,4405.3,4405.2,0.004]
[1757065424715,22.20485049,4405.3,4405.2,0.004]
[1757065425218,21.41185049,4405.3,4405.2,0.004]
[1757065425626,17.95805049,4405.3,4405.2,0.004]
[1757065425857,17.65775049,4405.3,4405.2,0.004]
[1757065426921,18.41925049,4405.3,4405.2,0.004]
[1757065429321,18.90455049,4405.3,4405.2,0.004]
[1757065429522,18.89955049,4405.3,4405.2,0.004]
[1757065430329,20.15715049,4405.3,4405.2,0.004]
[1757065431567,23.15715049,4405.3,4405.2,0.004]
[1757065431754,16.01715049,4405.3,4405.2,0.004]
[1757065432659,0.4529,4405.3,4405.2,0.7562]
[1757065432956,6.19299296,4405.3,4405.2,1.2494]
[1757065433357,3.923,4405.3,4405.2,1.2494]
[1757065433558,6.19299296,4405.3,4405.2,1.2494]
[1757065434660,6.19299296,4405.3,4405.2,0.7562]
[1757065435735,6.98689296,4405.3,4405.2,0.004]
[1757065435940,6.19299296,4405.3,4405.2,0.004]
[1757065436327,6.18999296,4405.3,4405.2,0.7562]
[1757065436528,6.98389296,4405.3,4405.2,0.004]
[1757065438337,8.24149296,4405.3,4405.2,0.004]
[1757065438543,11.24149296,4405.3,4405.2,0.004]
[1757065440064,6.15299854,4405.3,4405.2,0.004]
[1757065440264,2.36099854,4405.3,4405.2,0.3033]
[1757065440475,6.27699854,4405.3,4405.2,0.7562]
[1757065441456,6.27699854,4405.3,4405.2,0.3033]
[1757065442266,2.36099854,4405.3,4405.2,0.3033]
[1757065442570,6.27499854,4405.3,4405.2,0.7562]
[1757065443668,6.27399854,4405.3,4405.2,0.3033]
[1757065443869,6.58259854,4405.3,4405.2,0.004]
[1757065444454,6.27399854,4405.3,4405.2,0.004]
[1757065445271,6.27399854,4405.3,4405.2,0.3033]
[1757065445272,0.09100558,4405.3,4405.2,0.3033]
[1757065445443,0.09100558,4405.3,4405.2,1.2494]
[1757065445945,4.00100558,4405.3,4405.2,1.2494]
[1757065446144,6.27099854,4405.3,4405.2,0.3033]
[1757065446865,4.00100558,4405.3,4405.2,0.7562]
[1757065447165,0.09100558,4405.3,4405.2,1.2494]
[1757065447474,3.99900558,4405.3,4405.2,1.2494]
[1757065447653,0.09100558,4405.3,4405.2,1.2494]
[1757065447855,0.1128,4405.2,4404.8,2.27021285]
[1757065448060,3.908,4405.1,4404.8,2.27021285]
[1757065448265,3.908,4405.1,4405.0,0.2993]
[1757065448666,6.48670476,4405.1,4404.7,0.004]
[1757065448839,0.1128,4405.0,4404.7,0.004]
[1757065449045,3.906,4404.9,4404.7,0.004]
[1757065449371,3.906,4404.8,4404.7,0.004]
[1757065449767,3.9052,4404.8,4404.7,0.784]
[1757065449969,3.9052,4404.8,4404.7,3.05430217]
[1757065450164,3.905,4404.8,4404.7,0.784]
[1757065450480,4.58743935,4404.8,4404.7,0.3195]
[1757065453560,0.68243935,4404.8,4404.7,0.3195]
[1757065453760,4.58443935,4404.8,4404.7,0.3195]
[1757065453967,3.902,4404.8,4404.7,0.3195]
[1757065455087,3.902,4404.8,4404.7,2.58980217]
[1757065455247,7.14,4404.9,4404.7,2.58980217]
[1757065455589,3.9,4404.8,4404.7,0.3195]
[1757065455791,7.14,4404.9,4404.7,0.98123634]
[1757065455952,7.14,4404.9,4404.8,2.27025063]
[1757065456284,7.14,4404.9,4404.8,3.40655063]
[1757065456682,7.14,4404.9,4404.8,3.05025063]
[1757065458655,7.14,4404.9,4404.8,2.58575063]
[1757065459177,7.14,4404.9,4404.8,3.05025063]
[1757065459784,3.897,4405.0,4404.9,2.27019909]
[1757065459987,3.897,4405.0,4404.9,2.58569909]
[1757065460449,3.897,4405.0,4404.9,0.3155]
[1757065460653,5.1062,4405.0,4404.7,0.004]
[1757065460873,0.9118,4404.9,4404.7,0.004]
[1757065461259,2.35538658,4405.5,4404.8,0.3155]
[1757065461461,3.892,4405.4,4404.9,2.27015855]
[1757065461879,0.68238658,4405.5,4405.3,0.3155]
[1757065462064,0.001,4405.6,4405.3,0.3155]
[1757065462065,3.892,4405.4,4405.3,0.3155]
[1757065463159,3.892,4405.4,4405.1,2.27009204]
[1757065463983,3.893,4405.4,4405.2,2.27004039]
[1757065464183,0.001,4405.4,4405.3,0.3155]
[1757065464384,3.891,4405.4,4405.3,0.3155]
[1757065464783,0.001,4405.4,4405.3,0.3155]
[1757065464985,0.001,4405.4,4404.7,0.004]
[1757065464986,4.1874,4405.4,4404.7,0.004]
[1757065465190,0.4839,4405.3,4404.7,0.004]
[1757065465369,3.888,4405.2,4404.7,0.004]
[1757065465871,0.1128,4405.0,4404.7,0.004]
[1757065466065,3.89,4404.9,4404.7,0.004]
[1757065466284,3.89,4404.9,4404.5,2.27040526]
[1757065466469,4.0008,4405.0,4404.9,0.3155]
[1757065468588,4.2982,4405.0,4404.2,2.38735756]
[1757065468787,5.21,4405.0,4404.2,2.38735756]
[1757065469108,5.21,4405.0,4404.5,2.27036684]
[1757065469293,5.21,4405.0,4404.6,2.27034992]
[1757065470067,5.8924378,4405.0,4404.6,2.27034992]
[1757065471170,5.4645378,4405.0,4404.5,2.27039229]
[1757065471390,0.4279,4404.9,4404.5,2.27039229]
[1757065471669,3.885,4404.8,4404.6,2.27034743]
[1757065472570,3.885,4404.8,4404.5,2.27040061]
[1757065474392,3.885,4404.8,4404.6,2.2703397]
[1757065475004,3.885,4404.8,4404.5,2.27036284]
[1757065475607,3.885,4404.8,4404.6,2.27034552]
[1757065475782,3.885,4404.8,4404.3,2.27050607]
[1757065476175,3.885,4404.8,4404.5,2.27039703]
[1757065476378,4.3129,4404.8,4404.5,2.27039703]
[1757065476701,4.7968,4404.8,4404.5,2.27039703]
[1757065477206,2.27050836,4404.3,4404.2,0.004]
[1757065477385,6.15450836,4404.3,4404.2,0.004]
[1757065477706,7.36290836,4404.3,4404.2,0.004]
[1757065477868,8.15490836,4404.3,4404.2,0.004]
[1757065479309,11.15490836,4404.3,4404.2,0.004]
[1757065481880,3.06271459,4403.9,4403.8,0.07879999]
[1757065482191,8.62371459,4403.9,4403.8,0.07879999]
[1757065482385,9.85041459,4403.9,4403.8,0.07879999]
[1757065482605,12.85041459,4403.9,4403.8,0.07879999]
[1757065485291,12.84941459,4403.9,4403.8,0.07879999]
[1757065486669,0.09104472,4404.0,4403.8,0.37899999]
[1757065486917,3.906,4403.9,4403.8,0.37899999]
[1757065489031,2.27061864,4404.1,4403.8,0.37899999]
[1757065489207,0.37899999,4404.2,4403.8,0.37899999]
[1757065489522,3.909,4404.1,4403.9,0.4369]
[1757065489697,3.909,4404.1,4404.0,0.3002]
[1757065490131,4.0218,4404.1,4404.0,0.3002]
[1757065490621,4.0218,4404.1,4403.8,0.07879999]
[1757065490928,0.2996,4403.9,4403.8,0.07879999]
[1757065491230,6.47931459,4403.9,4403.8,0.07879999]
[1757065491430,6.94151459,4403.9,4403.8,0.07879999]
[1757065491732,7.40641459,4403.9,4403.8,0.07879999]
[1757065495942,6.17571459,4403.9,4403.8,0.07879999]
[1757065496343,0.09102401,4404.0,4403.8,0.37899999]
[1757065496545,4.0168,4403.9,4403.8,0.37899999]
[1757065497215,11.1568,4403.9,4403.8,0.37899999]
[1757065499413,7.2528,4403.9,4403.8,0.37899999]
[1757065499642,11.1538,4403.9,4403.8,0.37899999]
[1757065502359,7.2528,4403.9,4403.8,0.37899999]
[1757065502566,11.1538,4403.9,4403.8,0.37899999]
[1757065502931,13.72411459,4403.9,4403.8,0.07879999]
[1757065503271,14.65121459,4403.9,4403.8,0.07879999]
[1757065503630,11.1538,4403.9,4403.8,0.07879999]
[1757065504067,11.4534,4403.9,4403.8,0.07879999]
[1757065504372,11.1538,4403.9,4403.8,0.07879999]
[1757065504568,7.2528,4403.9,4403.8,0.37899999]
[1757065504780,13.41951459,4403.9,4403.8,0.07879999]
[1757065505085,13.72011459,4403.9,4403.8,0.07879999]
[1757065505264,14.64721459,4403.9,4403.8,0.07879999]
[1757065505434,14.64541459,4403.9,4403.8,0.07879999]
[1757065505760,10.74941459,4403.9,4403.8,0.07879999]
[1757065506232,14.64441459,4403.9,4403.8,0.07879999]
[1757065508443,10.74941459,4403.9,4403.8,0.07879999]
[1757065508662,14.64241459,4403.9,4403.8,0.07879999]
[1757065510170,14.64491459,4403.9,4403.8,0.07879999]
[1757065514143,7.50491459,4403.9,4403.8,0.07879999]
[1757065518244,7.49891459,4403.9,4403.8,0.07879999]
[1757065520167,8.29091459,4403.9,4403.8,0.07879999]
[1757065520940,11.29091459,4403.9,4403.8,0.07879999]
[1757065521542,11.29091459,4403.9,4402.8,0.025]
[1757065521543,9.0202,4403.9,4402.8,0.025]
[1757065521745,9.0202,4403.9,4401.8,0.029]
[1757065521746,2.27138509,4402.6,4401.8,0.029]
[1757065521961,2.27174629,4401.9,4401.8,0.029]
[1757065522144,6.44674629,4401.9,4401.8,0.029]
[1757065522345,7.37284629,4401.9,4401.8,0.029]
[1757065524062,11.16484629,4401.9,4401.8,1e-08]
[1757065524264,3.33881609,4401.8,4400.8,0.029]
[1757065524464,5.584,4401.7,4400.8,0.029]
[1757065524773,4.702,4401.6,4400.8,0.029]
[1757065525149,2.27216038,4401.1,4400.8,0.029]
[1757065525360,6.18221837,4401.0,4400.8,0.029]
[1757065525564,3.91,4401.0,4400.8,0.029]
[1757065525877,3.91,4401.0,4400.9,0.2961]
[1757065527677,6.18221086,4401.0,4400.9,0.2961]
[1757065528171,6.86332152,4401.0,4400.9,0.2961]
[1757065530085,2.27226249,4400.9,4400.8,0.029]
[1757065530249,4.59111066,4401.0,4400.8,0.029]
[1757065530250,6.86332232,4401.0,4400.8,0.029]
[1757065530450,6.86332232,4401.0,4400.8,0.3251]
[1757065531297,4.59111066,4401.0,4400.8,0.3251]
[1757065531885,6.86333474,4401.0,4400.8,0.3251]
[1757065532082,4.59111066,4401.0,4400.8,0.3251]
[1757065532460,6.18022836,4401.0,4400.8,0.3251]
[1757065532984,2.27226249,4400.9,4400.8,0.3251]
[1757065533386,6.86253513,4401.0,4400.8,0.3251]
[1757065533681,2.27226249,4400.9,4400.8,0.029]
[1757065533889,6.86253531,4401.0,4400.8,0.029]
[1757065534390,2.27226249,4400.9,4400.8,0.029]
[1757065535086,6.86253214,4401.0,4400.8,0.029]
[1757065535784,2.27226249,4400.9,4400.8,0.029]
[1757065542583,2.58656249,4400.9,4400.8,0.029]
[1757065542871,3.05666249,4400.9,4400.8,0.029]
[1757065543499,0.4971,4401.2,4400.8,0.029]
[1757065543701,0.68311221,4401.5,4400.8,0.7206]
[1757065543883,11.1436,4401.4,4401.1,2.27215923]
[1757065544084,11.1446,4401.4,4401.3,0.3103]
[1757065544402,11.1446,4401.4,4401.3,0.7724]
[1757065544698,11.1446,4401.4,4401.3,0.3103]
[1757065546720,11.1436,4401.4,4401.3,0.3103]
[1757065551824,7.2536,4401.4,4401.3,0.3103]
[1757065552112,11.1436,4401.4,4401.3,0.3103]
[1757065553110,11.1436,4401.4,4400.9,2.272246]
[1757065553315,11.6137,4401.4,4400.8,2.30129931]
[1757065553611,0.9672,4401.3,4400.8,0.029]
[1757065553818,0.3143,4400.9,4400.8,0.029]
[1757065554111,4.2043,4400.9,4400.8,0.029]
[1757065554317,7.44376249,4400.9,4400.8,0.029]
[1757065555108,5.1715,4400.9,4400.8,0.029]
[1757065555718,7.44376249,4400.9,4400.8,0.029]
[1757065557398,5.1715,4400.9,4400.8,0.029]
[1757065560322,9.41210881,4401.2,4400.8,0.029]
[1757065560323,7.2536,4401.2,4400.8,0.3393]
[1757065560495,3.89,4401.1,4400.8,0.3393]
[1757065561212,4.3593,4401.1,4400.8,0.3393]
[1757065562830,4.8564,4401.1,4400.8,0.029]
[1757065562994,4.3863,4401.1,4400.8,0.029]
[1757065563198,0.4701,4401.0,4400.8,0.029]
[1757065563530,3.889,4400.9,4400.8,0.029]
[1757065563831,4.0026,4400.9,4400.8,0.029]
[1757065564499,0.1136,4400.9,4400.8,0.3393]
[1757065565416,7.14,4401.2,4400.8,3.68638329]
[1757065565611,3.889,4401.1,4401.0,2.27217539]
[1757065565994,3.889,4401.1,4401.0,2.58247539]
[1757065567530,11.029,4401.2,4401.0,2.58249466]
[1757065567911,11.029,4401.2,4401.1,2.27215923]
[1757065568114,11.029,4401.2,4401.1,2.58245923]
[1757065568500,7.14,4401.2,4401.1,2.99729207]
[1757065568830,0.001,4401.4,4401.1,2.99729207]
[1757065568831,0.001,4401.4,4401.3,2.27205598]
[1757065569332,0.001,4401.4,4401.3,2.56775598]
[1757065571526,0.001,4401.4,4401.3,3.00455598]
[1757065571833,0.001,4401.4,4401.3,2.56775598]
[1757065572023,0.001,4401.4,4401.3,3.57501938]
[1757065577840,0.001,4401.4,4401.3,3.27931938]
[1757065578065,0.3048,4401.4,4401.3,7.16731938]
[1757065579039,1.2335,4401.4,4401.3,7.16731938]
[1757065579254,0.001,4401.4,4401.3,7.46301938]
[1757065579741,0.001,4401.4,4401.3,7.16731938]
[1757065583252,0.001,4401.4,4401.3,7.16731938]
[1757065583422,0.001,4401.4,4401.3,7.46301938]
[1757065586669,0.001,4401.4,4401.3,10.84431938]
[1757065586824,0.001,4401.4,4401.3,11.28111938]
[1757065589256,0.0002,4401.4,4401.3,10.89981938]
[1757065589630,0.0002,4401.4,4401.3,11.28111938]
[1757065592659,0.0002,4401.4,4401.3,10.89981938]
[1757065593433,0.0002,4401.4,4401.3,11.28111938]
[1757065594142,0.001,4401.8,4401.7,2.27184951]
[1757065594459,0.001,4401.9,4401.8,10.53911285]
[1757065594662,0.001,4401.9,4401.8,11.65291285]
[1757065596739,0.001,4401.9,4401.8,11.76571285]
[1757065597881,0.025,4402.8,4402.2,2.27158866]
[1757065598182,0.025,4402.8,4402.7,5.27133349]
[1757065598385,0.025,4402.8,4402.7,10.73303888]
[1757065598567,0.025,4402.8,4402.7,10.84583888]
[1757065598742,0.3288,4402.8,4402.7,10.55013888]
[1757065598944,0.7841,4402.8,4402.7,10.55013888]
[1757065599150,1.2229,4402.8,4402.7,10.55013888]
[1757065600872,1.2229,4402.8,4402.7,10.54913888]
[1757065602277,0.9191,4402.8,4402.7,10.54913888]
[1757065602444,0.025,4402.8,4402.7,10.54913888]
[1757065602767,1.2045,4402.8,4402.7,10.54913888]
[1757065605477,1.2045,4402.8,4402.7,6.66513888]
[1757065605680,1.2045,4402.8,4402.7,0.1128]
[1757065605884,1.2045,4402.8,4402.6,2.27137267]
[1757065606050,0.8941,4402.7,4402.6,2.27137267]
[1757065606255,1.1795,4402.7,4402.6,2.27137267]
[1757065607481,0.025,4402.8,4402.7,2.27133349]
[1757065607777,0.025,4402.8,4402.7,6.15433349]
[1757065608075,0.7525,4402.8,4402.7,6.15433349]
[1757065608480,1.2045,4402.8,4402.7,6.15433349]
[1757065610594,0.7624,4402.8,4402.7,6.15433349]
[1757065610886,1.2045,4402.8,4402.7,6.15433349]
[1757065613080,0.025,4402.8,4402.7,6.15433349]
[1757065614355,0.3104,4402.8,4402.7,6.15433349]
[1757065614880,0.7525,4402.8,4402.7,6.15433349]
[1757065615596,1.2045,4402.8,4402.7,6.15433349]